bitfinex-derivatives/quotes_BTCF0:USTF0_20210703
["timestamp","ask_amount","ask_price","bid_price","bid_amount"]
[1625331288633,5.57627864,34535.0,34534.0,4.27370206]
[1625331288984,7.11948031,34535.0,34534.0,2.90696075]
[1625331289130,7.11948031,34535.0,34534.0,2.80146075]
[1625331289279,7.11948031,34535.0,34534.0,1.80126075]
[1625331289384,7.11948031,34535.0,34534.0,0.80106075]
[1625331289483,7.11948031,34535.0,34534.0,0.54266075]
[1625331289781,7.11948031,34535.0,34534.0,0.00726075]
[1625331289882,7.11948031,34535.0,34532.0,1.09030697]
[1625331290383,0.01716639,34534.0,34532.0,1.09030697]
[1625331290484,0.13516639,34534.0,34532.0,1.09030697]
[1625331290685,0.13516639,34534.0,34531.0,0.55560167]
[1625331290936,0.01716675,34533.0,34531.0,0.55560167]
[1625331291034,0.13516675,34533.0,34531.0,0.55560167]
[1625331291287,3.24783978,34532.0,34531.0,0.55560167]
[1625331291486,3.38300684,34532.0,34531.0,0.40020167]
[1625331291838,3.38300684,34532.0,34531.0,0.35660167]
[1625331291937,3.38300684,34532.0,34531.0,0.18280167]
[1625331293840,3.36583978,34532.0,34531.0,0.18280167]
[1625331294946,3.38300645,34532.0,34531.0,0.18280167]
[1625331295199,3.38300645,34532.0,34531.0,0.00600167]
[1625331295499,3.38300645,34532.0,34520.0,0.9476]
[1625331295699,3.36583978,34532.0,34520.0,0.9476]
[1625331295802,3.45233978,34532.0,34520.0,0.9476]
[1625331296201,1.8311223,34525.0,34520.0,0.9476]
[1625331296300,0.96230176,34521.0,34520.0,0.9476]
[1625331296399,1.02130176,34521.0,34520.0,0.9476]
[1625331297152,0.96230176,34521.0,34520.0,0.9476]
[1625331297253,0.96230176,34521.0,34520.0,0.95103328]
[1625331297753,0.96230176,34521.0,34520.0,1.01003328]
[1625331299506,0.96230176,34521.0,34520.0,0.95103328]
[1625331299807,1.02130176,34521.0,34520.0,0.95103328]
[1625331300059,1.02130176,34521.0,34520.0,0.9476]
[1625331305769,1.02130176,34521.0,34520.0,1.0066]
[1625331306120,1.02130176,34521.0,34520.0,0.9476]
[1625331314236,3.56541725,34521.0,34520.0,0.9476]
[1625331315338,4.07460566,34521.0,34520.0,0.9476]
[1625331315887,4.07460566,34521.0,34520.0,0.95103408]
[1625331316037,4.07460566,34521.0,34520.0,0.88213408]
[1625331316136,4.07460566,34521.0,34520.0,0.8787]
[1625331317941,4.09177761,34521.0,34520.0,0.88213439]
[1625331319944,5.10830352,34521.0,34520.0,0.88213439]
[1625331322606,5.09113157,34521.0,34520.0,0.88213439]
[1625331323009,3.73428128,34521.0,34520.0,0.88213439]
[1625331330626,3.75145145,34521.0,34520.0,0.88213439]
[1625331330925,3.81045145,34521.0,34520.0,0.88213439]
[1625331331027,3.75145145,34521.0,34520.0,0.88213439]
[1625331331226,3.81045145,34521.0,34520.0,0.88213439]
[1625331331880,3.75145145,34521.0,34520.0,0.88213439]
[1625331331978,3.81045145,34521.0,34520.0,0.88213439]
[1625331332933,5.16852322,34521.0,34520.0,0.88213439]
[1625331333131,5.10952322,34521.0,34520.0,0.88213439]
[1625331333231,5.16852322,34521.0,34520.0,0.88213439]
[1625331333681,5.10952322,34521.0,34520.0,0.88213439]
[1625331333984,5.16852322,34521.0,34520.0,0.88213439]
[1625331334086,5.10952322,34521.0,34520.0,0.88213439]
[1625331334535,5.16852322,34521.0,34520.0,0.88213439]
[1625331334637,5.10952322,34521.0,34520.0,0.88213439]
[1625331335136,5.09235305,34521.0,34520.0,0.88213439]
[1625331335386,3.73428128,34521.0,34520.0,0.88213439]
[1625331336539,3.79328128,34521.0,34520.0,0.88213439]
[1625331336791,3.81045163,34521.0,34520.0,0.88213439]
[1625331336993,5.16856005,34521.0,34520.0,0.88213439]
[1625331337745,5.22756005,34521.0,34520.0,0.88213439]
[1625331337845,5.16856005,34521.0,34520.0,0.88213439]
[1625331343511,6.69924733,34521.0,34520.0,0.88213439]
[1625331343811,6.64024733,34521.0,34520.0,0.88213439]
[1625331344662,5.10956005,34521.0,34520.0,0.88213439]
[1625331344812,5.0923897,34521.0,34520.0,0.8787]
[1625331345061,5.10956098,34521.0,34520.0,0.88213426]
[1625331345162,6.64154967,34521.0,34520.0,0.88213426]
[1625331346415,6.70054967,34521.0,34520.0,0.88213426]
[1625331346615,6.64154967,34521.0,34520.0,0.88213426]
[1625331347517,6.70054967,34521.0,34520.0,0.88213426]
[1625331347619,6.64154967,34521.0,34520.0,0.88213426]
[1625331348923,6.70054967,34521.0,34520.0,0.88213426]
[1625331349022,6.64154967,34521.0,34520.0,0.88213426]
[1625331349374,6.70054967,34521.0,34520.0,0.88213426]
[1625331349925,6.64154967,34521.0,34520.0,0.88213426]
[1625331350173,7.32364113,34521.0,34520.0,0.88213426]
[1625331350423,7.38264113,34521.0,34520.0,0.88213426]
[1625331350523,7.32364113,34521.0,34520.0,0.88213426]
[1625331350825,7.38264113,34521.0,34520.0,0.88213426]
[1625331353880,7.32364113,34521.0,34520.0,0.88213426]
[1625331355235,7.38264113,34521.0,34520.0,0.88213426]
[1625331355384,7.32364113,34521.0,34520.0,0.88213426]
[1625331356137,7.32364113,34521.0,34520.0,1.22479734]
[1625331356735,7.32364113,34521.0,34520.0,0.88213426]
[1625331356736,7.38264113,34521.0,34520.0,0.88213426]
[1625331356837,7.32364113,34521.0,34520.0,0.88213426]
[1625331357036,7.38264113,34521.0,34520.0,0.88213426]
[1625331357135,7.32364113,34521.0,34520.0,0.88213426]
[1625331357235,7.38264113,34521.0,34520.0,0.88213426]
[1625331357486,7.32364113,34521.0,34520.0,0.88213426]
[1625331358039,7.38264113,34521.0,34520.0,0.88213426]
[1625331358186,7.32364113,34521.0,34520.0,0.88213426]
[1625331358642,7.38264113,34521.0,34520.0,0.88213426]
[1625331358739,7.32364113,34521.0,34520.0,0.88213426]
[1625331359794,7.32364113,34521.0,34520.0,1.22488583]
[1625331360498,7.32364113,34521.0,34520.0,1.46404583]
[1625331360993,7.32364113,34521.0,34520.0,2.32088503]
[1625331361693,5.79165244,34521.0,34520.0,3.34906088]
[1625331361842,5.77448116,34521.0,34520.0,3.34906088]
[1625331362896,5.71548116,34521.0,34520.0,3.34906088]
[1625331363448,5.77448116,34521.0,34520.0,3.34906088]
[1625331363549,5.77448116,34521.0,34520.0,4.548577]
[1625331370114,5.71548116,34521.0,34520.0,4.548577]
[1625331370318,6.03616116,34521.0,34520.0,4.548577]
[1625331370417,6.03616116,34521.0,34520.0,4.309417]
[1625331371320,7.57784523,34521.0,34520.0,2.08172503]
[1625331374675,7.63684523,34521.0,34520.0,2.08172503]
[1625331374774,7.57784523,34521.0,34520.0,2.08172503]
[1625331374876,7.63684523,34521.0,34520.0,2.08172503]
[1625331374976,7.57784523,34521.0,34520.0,2.08172503]
[1625331375327,7.63684523,34521.0,34520.0,2.08172503]
[1625331375728,7.57784523,34521.0,34520.0,2.08172503]
[1625331375827,7.57784523,34521.0,34520.0,1.39624459]
[1625331375828,7.63684523,34521.0,34520.0,1.39624459]
[1625331375927,7.57784523,34521.0,34520.0,1.39624459]
[1625331376929,7.63684523,34521.0,34520.0,1.39624459]
[1625331377129,7.6540167,34521.0,34520.0,1.39624459]
[1625331377430,9.36665979,34521.0,34520.0,0.88213426]
[1625331377936,9.36665979,34521.0,34520.0,0.8787]
[1625331378886,4.61348039,34521.0,34520.0,0.8787]
[1625331379236,9.40773448,34521.0,34520.0,0.8787]
[1625331381697,9.61304774,34521.0,34520.0,0.8787]
[1625331383147,4.81879365,34521.0,34520.0,0.8787]
[1625331383598,8.41048248,34521.0,34520.0,0.8787]
[1625331383698,9.60765509,34521.0,34520.0,0.8787]
[1625331384651,9.40234183,34521.0,34520.0,0.8787]
[1625331385702,9.60744246,34521.0,34520.0,0.8787]
[1625331386159,9.40234183,34521.0,34520.0,0.8787]
[1625331390415,9.38517036,34521.0,34520.0,0.8787]
[1625331392420,9.32617036,34521.0,34520.0,0.8787]
[1625331393023,7.61352727,34521.0,34520.0,0.8787]
[1625331393525,7.67252727,34521.0,34520.0,0.8787]
[1625331395475,9.38350287,34521.0,34520.0,0.8787]
[1625331395776,9.40067641,34521.0,34520.0,0.8787]
[1625331413067,9.43502732,34521.0,34520.0,0.8787]
[1625331413267,9.40067641,34521.0,34520.0,0.8787]
[1625331413569,9.43502797,34521.0,34520.0,0.8787]
[1625331414317,9.37602797,34521.0,34520.0,0.7487]
[1625331414419,9.43502797,34521.0,34520.0,0.7487]
[1625331414618,9.46502797,34521.0,34520.0,0.7487]
[1625331414725,9.66977739,34521.0,34520.0,0.7487]
[1625331414819,9.75757739,34521.0,34520.0,0.40517137]
[1625331414969,9.75757739,34521.0,34520.0,0.40057137]
[1625331415069,9.75757739,34521.0,34520.0,0.33257137]
[1625331415424,9.75757739,34521.0,34519.0,0.55454927]
[1625331415673,0.05153268,34520.0,34519.0,0.31754927]
[1625331415770,0.05153268,34520.0,34519.0,0.09014927]
[1625331415876,0.11053268,34520.0,34514.0,0.50907986]
[1625331416021,0.11053268,34520.0,34514.0,0.45587986]
[1625331416022,0.589,34519.0,34514.0,0.45587986]
[1625331416172,0.648,34519.0,34514.0,0.45587986]
[1625331416274,0.05153775,34518.0,34514.0,0.45587986]
[1625331416370,0.11053775,34518.0,34514.0,0.45587986]
[1625331416525,8.21398274,34515.0,34514.0,0.45587986]
[1625331416621,8.27298274,34515.0,34514.0,0.45587986]
[1625331416720,8.33198274,34515.0,34514.0,0.45587986]
[1625331417020,8.83031288,34515.0,34514.0,0.45587986]
[1625331417620,8.83831288,34515.0,34514.0,0.45587986]
[1625331418323,8.63384508,34515.0,34514.0,0.45587986]
[1625331423539,8.63384508,34515.0,34514.0,0.71352986]
[1625331423888,8.63484963,34515.0,34514.0,0.71352986]
[1625331425240,8.63263961,34515.0,34514.0,0.45587986]
[1625331426041,8.92469961,34515.0,34514.0,0.45587986]
[1625331426895,8.92690963,34515.0,34514.0,0.45587986]
[1625331426995,8.93390508,34515.0,34514.0,0.45587986]
[1625331428248,8.92714685,34515.0,34514.0,0.45587986]
[1625331429148,8.63508685,34515.0,34514.0,0.45587986]
[1625331430251,8.63311404,34515.0,34514.0,0.45587986]
[1625331436063,8.63987227,34515.0,34514.0,0.45587986]
[1625331436161,8.64184508,34515.0,34514.0,0.45587986]
[1625331437314,8.58284508,34515.0,34514.0,0.45587986]
[1625331438116,8.64184508,34515.0,34514.0,0.45587986]
[1625331438870,3.87007777,34515.0,34514.0,0.45587986]
[1625331438971,3.81107777,34515.0,34514.0,0.75817986]
[1625331439222,6.830439,34515.0,34514.0,0.75817986]
[1625331439323,6.830439,34515.0,34514.0,0.761615]
[1625331439422,6.889439,34515.0,34514.0,0.761615]
[1625331440071,6.830439,34515.0,34514.0,0.761615]
[1625331440621,6.889439,34515.0,34514.0,0.761615]
[1625331440871,6.86550135,34515.0,34514.0,0.761615]
[1625331441073,6.79950596,34515.0,34514.0,0.761615]
[1625331441321,6.85850596,34515.0,34514.0,0.761615]
[1625331441622,6.79950596,34515.0,34514.0,0.761615]
[1625331441873,6.85850596,34515.0,34514.0,0.761615]
[1625331441972,6.79950596,34515.0,34514.0,0.761615]
[1625331442073,6.85850596,34515.0,34514.0,0.761615]
[1625331443027,6.79950596,34515.0,34514.0,0.761615]
[1625331443725,6.85850596,34515.0,34514.0,0.761615]
[1625331443827,6.79950596,34515.0,34514.0,0.761615]
[1625331443927,6.85850596,34515.0,34514.0,0.761615]
[1625331444075,6.85850596,34515.0,34514.0,0.459315]
[1625331445834,6.85850607,34515.0,34514.0,0.459315]
[1625331447538,6.79950607,34515.0,34514.0,0.459315]
[1625331447638,6.85850607,34515.0,34514.0,0.459315]
[1625331448540,6.85826896,34515.0,34514.0,0.459315]
[1625331449342,6.79926896,34515.0,34514.0,0.459315]
[1625331449492,6.85826896,34515.0,34514.0,0.459315]
[1625331449941,6.79926896,34515.0,34514.0,0.459315]
[1625331450843,6.85826896,34515.0,34514.0,0.459315]
[1625331451946,6.85850607,34515.0,34514.0,0.459315]
[1625331452497,6.91750607,34515.0,34514.0,0.459315]
[1625331454354,6.93468155,34515.0,34514.0,0.45587986]
[1625331456660,8.64434308,34515.0,34514.0,0.45587986]
[1625331457162,8.85632049,34515.0,34514.0,0.45587986]
[1625331457512,8.65809675,34515.0,34514.0,0.45587986]
[1625331459612,8.59909675,34515.0,34514.0,0.45587986]
[1625331459714,8.65809675,34515.0,34514.0,0.45587986]
[1625331460365,8.5923385,34515.0,34514.0,0.45587986]
[1625331460565,8.64458025,34515.0,34514.0,0.45587986]
[1625331460666,8.58558025,34515.0,34514.0,0.45587986]
[1625331461122,8.64458025,34515.0,34514.0,0.45587986]
[1625331461774,8.64434314,34515.0,34514.0,0.45587986]
[1625331461977,8.64410603,34515.0,34514.0,0.45587986]
[1625331465130,8.6474269,34515.0,34514.0,0.45587986]
[1625331465329,8.65074777,34515.0,34514.0,0.45587986]
[1625331466531,8.65442226,34515.0,34514.0,0.45587986]
[1625331466831,8.65809675,34515.0,34514.0,0.45587986]
[1625331470095,8.86329872,34515.0,34514.0,0.45587986]
[1625331475253,8.65809675,34515.0,34514.0,0.45587986]
[1625331475754,8.86330799,34515.0,34514.0,0.45587986]
[1625331476908,8.65809675,34515.0,34514.0,0.45587986]
[1625331478511,8.86334675,34515.0,34514.0,0.45587986]
[1625331479313,9.06863241,34515.0,34514.0,0.45587986]
[1625331481164,8.86338241,34515.0,34514.0,0.45587986]
[1625331481415,8.65809675,34515.0,34514.0,0.45587986]
[1625331481615,8.59909675,34515.0,34514.0,0.45587986]
[1625331481715,8.59909675,34515.0,34514.0,0.68352986]
[1625331481918,8.59909675,34515.0,34514.0,0.68696503]
[1625331482115,8.54009675,34515.0,34514.0,0.68696503]
[1625331482217,8.52409675,34515.0,34514.0,0.68696503]
[1625331482669,6.81443522,34515.0,34514.0,0.68696503]
[1625331482766,4.81293522,34515.0,34514.0,0.68696503]
[1625331482967,2.41379054,34515.0,34514.0,0.68696503]
[1625331483273,1.62433402,34517.0,34514.0,0.68696503]
[1625331483470,0.48115088,34521.0,34516.0,0.24057544]
[1625331483573,0.48115088,34521.0,34516.0,0.29957544]
[1625331484122,0.48115088,34521.0,34517.0,0.00343415]
[1625331484274,0.48115088,34521.0,34520.0,0.51216555]
[1625331484573,0.48115088,34521.0,34520.0,0.51559968]
[1625331484874,0.49832136,34521.0,34520.0,0.34487783]
[1625331486431,0.48115088,34521.0,34520.0,0.34487783]
[1625331487035,0.48115088,34521.0,34520.0,0.51540997]
[1625331488588,0.48115088,34521.0,34520.0,0.51197584]
[1625331489595,0.48115088,34521.0,34520.0,0.59719263]
[1625331490845,0.48115088,34521.0,34520.0,0.25574893]
[1625331491396,0.48115088,34521.0,34520.0,0.59659065]
[1625331491497,0.48115088,34521.0,34520.0,0.83716609]
[1625331492049,0.48115088,34521.0,34520.0,0.49632437]
[1625331493904,0.48115088,34521.0,34520.0,0.32579223]
[1625331494356,0.48115088,34521.0,34520.0,0.24057544]
[1625331498666,1.84767947,34521.0,34520.0,0.24057544]
[1625331499969,1.84767947,34521.0,34518.0,0.25561501]
[1625331500119,1.90667947,34521.0,34518.0,0.25561501]
[1625331500271,1.96567947,34521.0,34518.0,0.25561501]
[1625331500470,1.36632487,34519.0,34516.0,0.4963273]
[1625331500569,1.48432487,34519.0,34516.0,0.4963273]
[1625331500721,1.42532487,34519.0,34516.0,0.4963273]
[1625331501070,1.3664401,34517.0,34516.0,0.24057544]
[1625331501169,1.7006601,34517.0,34516.0,0.24057544]
[1625331501470,1.94123554,34517.0,34516.0,0.24057544]
[1625331503123,3.13692697,34517.0,34516.0,0.24057544]
[1625331503723,3.07792697,34517.0,34516.0,0.24057544]
[1625331506680,1.43626687,34517.0,34516.0,0.24057544]
[1625331508533,1.43626687,34517.0,34516.0,0.24400986]
[1625331511343,2.80247282,34517.0,34516.0,0.24400986]
[1625331512647,3.15724282,34517.0,34516.0,0.00343442]
[1625331512802,3.17441724,34517.0,34514.0,0.71175381]
[1625331513047,0.01717525,34516.0,34514.0,0.71175381]
[1625331513197,0.13517525,34516.0,34514.0,0.71175381]
[1625331513497,0.48115088,34515.0,34514.0,0.71175381]
[1625331513599,0.49832632,34515.0,34514.0,0.71175381]
[1625331513758,5.73717595,34515.0,34514.0,0.45587986]
[1625331516714,5.67817595,34515.0,34514.0,0.45587986]
[1625331516814,5.66100051,34515.0,34514.0,0.45587986]
[1625331517410,5.60200051,34515.0,34514.0,0.45587986]
[1625331517862,4.06577975,34515.0,34514.0,0.45587986]
[1625331518363,4.06577975,34515.0,34514.0,0.45931462]
[1625331519469,4.06577975,34515.0,34514.0,0.45587986]
[1625331520267,4.06577975,34515.0,34514.0,0.45931459]
[1625331522576,2.70023123,34515.0,34514.0,0.45931459]
[1625331523379,2.75923123,34515.0,34514.0,0.45931459]
[1625331523479,2.70023123,34515.0,34514.0,0.45931459]
[1625331523577,2.75923123,34515.0,34514.0,0.45931459]
[1625331523728,4.06677011,34515.0,34514.0,0.45931459]
[1625331523977,4.12577011,34515.0,34514.0,0.45931459]
[1625331524529,4.06677011,34515.0,34514.0,0.45931459]
[1625331524876,4.12577011,34515.0,34514.0,0.45931459]
[1625331525027,4.06677011,34515.0,34514.0,0.45931459]
[1625331525177,4.12577011,34515.0,34514.0,0.45931459]
[1625331525627,4.06677011,34515.0,34514.0,0.45931459]
[1625331526129,4.12577011,34515.0,34514.0,0.45931459]
[1625331526328,4.06677011,34515.0,34514.0,0.45931459]
[1625331526580,4.12577011,34515.0,34514.0,0.45931459]
[1625331526830,4.06677011,34515.0,34514.0,0.45931459]
[1625331529534,2.70023123,34515.0,34514.0,0.80015195]
[1625331530135,2.70023123,34515.0,34514.0,0.45931459]
[1625331531338,2.70023123,34515.0,34514.0,0.80023015]
[1625331532491,2.70023123,34515.0,34514.0,0.45931459]
[1625331537196,4.06888701,34515.0,34514.0,0.45587986]
[1625331537397,4.06888701,34515.0,34514.0,0.45931443]
[1625331540204,4.06888701,34515.0,34514.0,1.48407016]
[1625331542556,1.67602717,34515.0,34514.0,1.48407016]
[1625331542659,0.48115088,34515.0,34514.0,0.45931443]
[1625331543059,1.71141723,34523.0,34514.0,0.51831443]
[1625331543259,1.71141723,34523.0,34514.0,0.57731443]
[1625331543459,1.71141723,34523.0,34515.0,0.00343388]
[1625331543610,1.71141723,34523.0,34515.0,0.12143388]
[1625331543759,1.71141723,34523.0,34522.0,0.72172632]
[1625331543859,1.71141723,34523.0,34522.0,1.03809632]
[1625331544062,1.71141723,34523.0,34522.0,1.04153012]
[1625331544661,2.9105308,34523.0,34522.0,3.93670172]
[1625331545213,1.71211722,34523.0,34522.0,3.93670172]
[1625331545312,1.71211722,34523.0,34522.0,3.99570172]
[1625331545715,1.71211722,34523.0,34522.0,5.35645021]
[1625331546015,0.68488112,34523.0,34522.0,5.35645021]
[1625331548169,0.68488112,34523.0,34522.0,5.29745021]
[1625331548623,0.68488112,34523.0,34522.0,3.87770172]
[1625331549078,1.71089835,34523.0,34522.0,2.68557224]
[1625331549630,2.90785566,34523.0,34522.0,1.66374697]
[1625331549736,3.1484311,34523.0,34522.0,1.40637697]
[1625331549875,3.4244511,34523.0,34522.0,0.92522609]
[1625331549979,3.5424511,34523.0,34522.0,0.92179229]
[1625331550178,4.91047543,34523.0,34522.0,0.32551091]
[1625331550379,4.91047543,34523.0,34522.0,0.08493547]
[1625331550625,4.91047543,34523.0,34518.0,0.08497611]
[1625331550975,4.91047543,34523.0,34516.0,0.67980889]
[1625331550976,4.27585799,34519.0,34516.0,0.08503373]
[1625331551176,4.39385799,34519.0,34516.0,0.08503373]
[1625331551427,4.39385799,34519.0,34515.0,0.59522645]
[1625331551428,4.27590584,34517.0,34515.0,0.59522645]
[1625331551528,4.27590584,34517.0,34515.0,0.25509154]
[1625331551728,0.48115088,34516.0,34515.0,0.25509154]
[1625331551829,0.73889088,34516.0,34515.0,0.25509154]
[1625331551979,0.79789088,34516.0,34515.0,0.25509154]
[1625331552180,0.79789088,34516.0,34515.0,0.17006745]
[1625331552282,5.07411867,34516.0,34514.0,1.05112788]
[1625331552733,4.27647144,34515.0,34514.0,0.45587986]
[1625331552881,4.39447144,34515.0,34514.0,0.45587986]
[1625331553732,4.63504688,34515.0,34514.0,0.45587986]
[1625331555534,6.17435633,34515.0,34514.0,0.45587986]
[1625331558591,1.89788489,34515.0,34514.0,0.45587986]
[1625331558792,5.14748966,34515.0,34514.0,0.45587986]
[1625331559345,6.17366962,34515.0,34514.0,0.45587986]
[1625331559444,6.44344962,34515.0,34514.0,0.45587986]
[1625331562203,6.38444962,34515.0,34514.0,0.45587986]
[1625331562505,6.44344962,34515.0,34514.0,0.45587986]
[1625331563404,6.38444962,34515.0,34514.0,0.45587986]
[1625331563504,6.44344962,34515.0,34514.0,0.45587986]
[1625331563604,6.38444962,34515.0,34514.0,0.45587986]
[1625331563704,6.44344962,34515.0,34514.0,0.45587986]
[1625331563906,6.38444962,34515.0,34514.0,0.45587986]
[1625331564004,6.44344962,34515.0,34514.0,0.45587986]
[1625331564605,6.38444962,34515.0,34514.0,0.45587986]
[1625331564754,6.44344962,34515.0,34514.0,0.45587986]
[1625331565908,6.17366962,34515.0,34514.0,0.45587986]
[1625331567813,6.41412962,34515.0,34514.0,0.45587986]
[1625331568465,6.35512962,34515.0,34514.0,0.45587986]
[1625331568668,6.41412962,34515.0,34514.0,0.45587986]
[1625331569818,6.50142962,34515.0,34514.0,0.45587986]
[1625331570022,6.41412962,34515.0,34514.0,0.45587986]
[1625331570624,8.1237116,34515.0,34514.0,0.45587986]
[1625331573625,8.63659983,34515.0,34514.0,0.45587986]
[1625331574780,6.92701785,34515.0,34514.0,0.45587986]
[1625331574879,6.68655785,34515.0,34514.0,0.45587986]
[1625331575282,6.62755785,34515.0,34514.0,0.45587986]
[1625331575532,6.56855785,34515.0,34514.0,0.45587986]
[1625331576384,5.0292484,34515.0,34514.0,0.45587986]
[1625331577434,5.0292484,34515.0,34514.0,0.45931469]
[1625331578889,5.0882484,34515.0,34514.0,0.45931469]
[1625331578990,5.0292484,34515.0,34514.0,0.45931469]
[1625331579091,5.0292484,34515.0,34514.0,0.45587986]
[1625331579290,5.0292484,34515.0,34514.0,0.45931469]
[1625331582597,5.1472484,34515.0,34514.0,0.45931469]
[1625331582796,5.16442335,34515.0,34514.0,0.45931469]
[1625331582946,6.70256484,34515.0,34514.0,0.45931469]
[1625331585551,6.64356484,34515.0,34514.0,0.45931469]
[1625331585702,6.70256484,34515.0,34514.0,0.45931469]
[1625331586304,5.16442335,34515.0,34514.0,0.45931469]
[1625331587554,6.70236776,34515.0,34514.0,0.45931469]
[1625331590159,6.70236776,34515.0,34514.0,0.68924469]
[1625331602036,6.64336776,34515.0,34514.0,0.68924469]
[1625331602185,6.70236776,34515.0,34514.0,0.68924469]
[1625331603839,6.70236776,34515.0,34514.0,0.45931469]
[1625331608451,8.41610451,34515.0,34514.0,0.45931469]
[1625331611563,8.35710451,34515.0,34514.0,0.45931469]
[1625331611663,8.35710451,34515.0,34514.0,0.71343469]
[1625331613067,6.64336776,34515.0,34514.0,1.22547811]
[1625331613567,6.64336776,34515.0,34514.0,1.90787902]
[1625331614018,6.40279232,34515.0,34514.0,1.90787902]
[1625331614569,6.64336776,34515.0,34514.0,2.14845446]
[1625331614970,6.64336776,34515.0,34514.0,3.17183627]
[1625331615418,6.62619281,34515.0,34514.0,3.17183627]
[1625331616120,5.0882484,34515.0,34514.0,3.17183627]
[1625331618223,5.0292484,34515.0,34514.0,3.17183627]
[1625331619375,5.0292484,34515.0,34514.0,3.23083627]
[1625331619625,5.0292484,34515.0,34514.0,3.17183627]
[1625331620027,3.66103876,34515.0,34514.0,4.36155008]
[1625331620779,3.42046332,34515.0,34514.0,4.36155008]
[1625331620937,3.42046332,34515.0,34514.0,4.47955008]
[1625331621036,2.19996332,34515.0,34514.0,4.47955008]
[1625331621192,1.2182597,34516.0,34514.0,4.51105008]
[1625331621582,0.2170597,34516.0,34515.0,0.00343403]
[1625331621680,1.04113926,34519.0,34515.0,0.00343403]
[1625331621780,1.04113926,34519.0,34515.0,0.12486796]
[1625331622082,0.057,34539.0,34516.0,0.00343393]
[1625331622083,0.25705045,34520.0,34516.0,0.00343393]
[1625331622232,0.25705045,34520.0,34516.0,0.12143393]
[1625331622633,0.25703381,34521.0,34519.0,0.48115088]
[1625331622783,0.25703381,34521.0,34519.0,0.59915088]
[1625331622932,0.25703381,34521.0,34519.0,0.6025847]
[1625331623182,0.25702375,34522.0,34519.0,0.6025847]
[1625331623383,0.25702375,34522.0,34520.0,0.12143385]
[1625331623686,0.59919844,34523.0,34520.0,0.12143385]
[1625331623887,0.59919844,34523.0,34521.0,0.00343385]
[1625331624033,0.59919844,34523.0,34521.0,0.37349385]
[1625331624483,0.59919844,34523.0,34522.0,0.00343383]
[1625331624584,0.59919844,34523.0,34522.0,0.06243383]
[1625331624687,0.08565209,34523.0,34522.0,0.60258471]
[1625331625688,0.17112127,34524.0,34522.0,0.60258471]
[1625331626037,0.17112127,34524.0,34523.0,0.00343351]
[1625331626187,2.127e-05,34524.0,34523.0,0.12143351]
[1625331626691,0.17097642,34529.0,34523.0,0.12143351]
[1625331627141,0.34178203,34530.0,34524.0,0.00343329]
[1625331627341,0.34178203,34530.0,34524.0,0.12143329]
[1625331627641,0.34178203,34530.0,34525.0,0.00343333]
[1625331627841,0.34178203,34530.0,34525.0,0.06243333]
[1625331627942,0.34178203,34530.0,34525.0,0.059]
[1625331628693,0.34178203,34530.0,34529.0,0.72172632]
[1625331629201,0.24057544,34537.0,34529.0,1.36170422]
[1625331629346,0.29957544,34537.0,34529.0,1.36170422]
[1625331629798,0.24057544,34537.0,34529.0,1.42070422]
[1625331630051,0.24057544,34537.0,34529.0,1.08320632]
[1625331630500,0.34126356,34530.0,34529.0,1.3614059]
[1625331630600,0.34126356,34530.0,34529.0,1.4204059]
[1625331630953,0.34126356,34530.0,34529.0,1.08320632]
[1625331631203,0.34126356,34530.0,34529.0,1.02420632]
[1625331631303,0.34126356,34530.0,34529.0,1.08320632]
[1625331631522,0.34125824,34531.0,34529.0,1.02420632]
[1625331631603,0.34125824,34531.0,34529.0,1.08320632]
[1625331631857,0.34125824,34531.0,34529.0,1.02420632]
[1625331631957,0.34125824,34531.0,34529.0,1.08320632]
[1625331632058,0.34125824,34531.0,34529.0,1.42013357]
[1625331633108,0.34125824,34531.0,34529.0,1.36113357]
[1625331634212,0.34125824,34531.0,34529.0,1.42013357]
[1625331634314,0.34125824,34531.0,34529.0,1.02420632]
[1625331634414,0.34125824,34531.0,34529.0,1.08320632]
[1625331634763,0.34125824,34531.0,34529.0,1.3610975]
[1625331635216,0.34125824,34531.0,34529.0,1.4200975]
[1625331635365,0.34125824,34531.0,34529.0,1.3610975]
[1625331635466,0.34125824,34531.0,34529.0,1.4200975]
[1625331635667,0.34125824,34531.0,34529.0,1.3610975]
[1625331635869,0.34125824,34531.0,34529.0,1.02420632]
[1625331636120,0.34125824,34531.0,34529.0,1.08320632]
[1625331636421,0.34125824,34531.0,34529.0,1.02420632]
[1625331637423,0.34125824,34531.0,34529.0,0.96520632]
[1625331637723,0.3407526,34530.0,34529.0,0.96520632]
[1625331637822,0.3407526,34530.0,34529.0,1.02420632]
[1625331638524,1.36253698,34534.0,34529.0,1.02420632]
[1625331638773,1.36253698,34534.0,34533.0,0.24057544]
[1625331639074,1.36238951,34535.0,34533.0,0.24057544]
[1625331639776,1.42138951,34535.0,34533.0,0.24057544]
[1625331640881,1.42138951,34535.0,34534.0,0.13757311]
[1625331641080,1.36238951,34535.0,34534.0,0.13757311]
[1625331641732,1.19171731,34535.0,34534.0,0.13757311]
[1625331642187,1.19171731,34535.0,34534.0,0.19657311]
[1625331642435,1.43210299,34537.0,34534.0,0.19657311]
[1625331642738,0.34053608,34536.0,34534.0,0.19657311]
[1625331642840,0.34053608,34536.0,34534.0,0.25557311]
[1625331643187,0.24057544,34537.0,34534.0,0.25557311]
[1625331643188,0.58109801,34537.0,34534.0,0.25557311]
[1625331643740,0.24057544,34537.0,34534.0,0.25557311]
[1625331644141,0.24057544,34537.0,34534.0,0.19657311]
[1625331644242,0.24057544,34537.0,34534.0,0.13757311]
[1625331646244,1.43150892,34537.0,34534.0,0.13757311]
[1625331647496,0.24057544,34537.0,34534.0,0.13757311]
[1625331648752,0.34032221,34535.0,34534.0,0.13757311]
[1625331649148,0.34032221,34535.0,34534.0,0.14100637]
[1625331651155,0.3574887,34535.0,34534.0,0.14100637]
[1625331651452,0.01716649,34535.0,34534.0,0.14100637]
[1625331652003,1.0377511,34536.0,34534.0,0.14100637]
[1625331652202,0.01716669,34535.0,34534.0,0.14100637]
[1625331654405,0.01716637,34536.0,34534.0,0.14100637]
[1625331654557,0.01716631,34535.0,34534.0,0.14100637]
[1625331656608,1.03800639,34535.0,34534.0,0.14100637]
[1625331659115,1.03800639,34535.0,34534.0,0.20000637]
[1625331659514,0.01716631,34535.0,34534.0,0.20000637]
[1625331659966,1.02104228,34536.0,34534.0,0.20000637]
[1625331660063,1.02104228,34536.0,34534.0,0.39070637]
[1625331660165,0.34045618,34535.0,34534.0,0.39070637]
[1625331660265,0.34045618,34535.0,34534.0,0.38727311]
[1625331660514,0.34045618,34535.0,34534.0,0.39070631]
[1625331661266,0.34045618,34535.0,34534.0,0.44970631]
[1625331661368,0.34045618,34535.0,34534.0,0.39070631]
[1625331662067,1.26160368,34537.0,34534.0,0.39070631]
[1625331662368,1.26160368,34537.0,34535.0,0.00343318]
[1625331662620,1.26160368,34537.0,34535.0,0.06243318]
[1625331662869,1.26160368,34537.0,34536.0,0.00343315]